bitfinex-derivatives/quotes_ETHF0:USTF0_20250410
["timestamp","ask_amount","ask_price","bid_price","bid_amount"]
[1744255884079,3.10947,1608.6,1607.8,8.43160938]
[1744255884379,1.24433,1607.9,1607.8,7.6253]
[1744255884581,4.45213,1607.9,1607.8,1.7803251]
[1744255884790,1.24433,1607.9,1607.8,1.7803251]
[1744255885377,1.24433,1607.9,1607.8,6.3194251]
[1744255886093,1.24433,1607.9,1607.8,4.5391]
[1744255887192,6.08643,1607.9,1607.8,4.5391]
[1744255887689,1.24433,1607.9,1607.8,4.5391]
[1744255888289,1.24433,1607.9,1607.8,6.3194251]
[1744255888686,1.24433,1607.9,1607.8,4.5391]
[1744255888987,6.22204,1607.8,1607.1,3.2078]
[1744255889193,1.24479,1607.3,1607.2,6.6004251]
[1744255889785,1.24479,1607.3,1607.2,1.7803251]
[1744255891196,1.24479,1607.3,1607.2,6.6561251]
[1744255891395,1.24479,1607.3,1607.2,4.8758]
[1744255891595,1.24487,1607.2,1607.1,0.00931532]
[1744255891796,5.95587,1607.2,1607.1,5.32e-06]
[1744255892393,11.78987,1607.2,1607.1,5.32e-06]
[1744255892588,1.24487,1607.2,1607.1,1.78033042]
[1744255893701,1.24487,1607.2,1607.1,5.32e-06]
[1744255893897,12.07887,1607.2,1607.1,5.32e-06]
[1744255894203,1.24533,1606.6,1606.5,9.8683]
[1744255894392,1.24533,1606.6,1606.5,14.8683]
[1744255894595,1.24533,1606.6,1606.5,16.6486251]
[1744255895495,1.24533,1606.6,1606.5,12.8940351]
[1744255895698,1.25458532,1606.7,1606.6,1.24533]
[1744255895900,1.25458532,1606.7,1606.6,3.0256551]
[1744255896197,5.381,1607.0,1606.8,1.24514]
[1744255896397,1.24515,1606.9,1606.8,4.45294]
[1744255896598,1.24508,1607.0,1606.9,1.7803251]
[1744255897195,1.24518,1606.8,1606.7,4.7541]
[1744255897595,1.24518,1606.8,1606.7,6.5344251]
[1744255899304,1.24518,1606.8,1606.7,4.7541]
[1744255899497,17.23939,1607.0,1606.5,4.4873]
[1744255899498,1.24533,1606.6,1606.5,4.4873]
[1744255899896,1.24533,1606.6,1606.5,6.2676251]
[1744255900598,1.24533,1606.6,1606.4,4.54021532]
[1744255900599,1.24541,1606.5,1606.4,5.32e-06]
[1744255900803,5.97611,1606.5,1606.4,5.32e-06]
[1744255901001,1.24541,1606.5,1606.4,1.78033042]
[1744255901201,1.24541,1606.5,1606.4,3.02582042]
[1744255901404,1.24541,1606.5,1606.4,7.80482042]
[1744255901602,1.24541,1606.5,1606.4,6.55933042]
[1744255902104,1.24541,1606.5,1606.4,7.80482042]
[1744255902607,1.2454,1606.6,1606.5,1.24539]
[1744255902907,1.24533,1606.7,1606.6,1.7803251]
[1744255904308,1.24533,1606.7,1606.6,3.0256551]
[1744255904910,1.24533,1606.7,1606.6,8.0256551]
[1744255905104,1.24533,1606.7,1606.6,6.7803251]
[1744255905701,1.24533,1606.7,1606.6,1.7803251]
[1744255905904,3.11257,1607.0,1606.6,6.7803251]
[1744255906203,1.24518,1606.8,1606.7,6.2333651]
[1744255906406,1.24518,1606.8,1606.7,4.45304]
[1744255906608,1.24518,1606.8,1606.7,6.2333651]
[1744255907003,1.24505,1607.0,1606.7,9.9881251]
[1744255907196,5.84331532,1607.1,1606.9,4.4529]
[1744255907403,0.00931532,1607.1,1607.0,1.24502]
[1744255907605,0.00931532,1607.1,1607.0,3.0253451]
[1744255908007,1.25426532,1607.1,1607.0,1.7803251]
[1744255908207,1.25426532,1607.1,1607.0,3.0253451]
[1744255908405,1.25426532,1607.1,1607.0,1.7803251]
[1744255908808,0.00931532,1607.1,1607.0,3.0253451]
[1744255909316,1.25426532,1607.1,1607.0,43.8253451]
[1744255909515,1.25426532,1607.1,1607.0,42.5803251]
[1744255909810,1.25425665,1607.1,1607.0,1.7803251]
[1744255910015,1.2451,1606.9,1606.8,4.8044]
[1744255910216,1.24533,1606.6,1606.5,8.90841687]
[1744255910515,1.24533,1606.6,1606.5,12.00054197]
[1744255910716,1.24533,1606.6,1606.5,11.5179251]
[1744255911606,1.24541,1606.5,1606.4,5.32e-06]
[1744255911805,1.24541,1606.5,1606.4,1.78033042]
[1744255912005,1.24541,1606.5,1606.4,5.32e-06]
[1744255912515,6.24541,1606.5,1606.4,5.32e-06]
[1744255912718,9.45321,1606.5,1606.4,5.32e-06]
[1744255913212,14.27421,1606.5,1606.4,5.32e-06]
[1744255913419,20.10821,1606.5,1606.4,5.32e-06]
[1744255913619,15.10821,1606.5,1606.4,5.32e-06]
[1744255914111,20.10821,1606.5,1606.4,5.32e-06]
[1744255914312,15.10821,1606.5,1606.4,5.32e-06]
[1744255914820,11.90041,1606.5,1606.4,1.78033042]
[1744255915818,1.24541,1606.5,1606.4,2.26551837]
[1744255916924,11.052,1606.7,1606.5,1.2454]
[1744255917111,7.07926,1606.7,1606.6,5.18208795]
[1744255917417,7.07926,1606.7,1606.6,6.96241305]
[1744255917819,7.07926,1606.7,1606.6,2.26551305]
[1744255918521,7.07926,1606.7,1606.6,0.48518795]
[1744255918817,1.24541,1606.5,1606.4,5.32e-06]
[1744255919121,4.45321,1606.5,1606.4,5.32e-06]
[1744255919411,15.28721,1606.5,1606.4,5.32e-06]
[1744255920422,1.24595,1605.8,1605.7,4.6765]
[1744255920622,1.24595,1605.8,1605.7,6.45683042]
[1744255921222,1.24595,1605.8,1605.7,1.78033042]
[1744255921418,19.84079,1606.0,1605.5,9.8955]
[1744255921731,1.24603,1605.7,1605.6,0.00931532]
[1744255922125,19.85763,1605.7,1605.6,5.32e-06]
[1744255922621,14.85763,1605.7,1605.6,5.32e-06]
[1744255922822,11.64983,1605.7,1605.6,5.32e-06]
[1744255923014,14.85763,1605.7,1605.6,5.32e-06]
[1744255923619,19.85763,1605.7,1605.6,5.32e-06]
[1744255925131,23.21023,1605.7,1605.6,5.32e-06]
[1744255928428,1.24673,1604.8,1604.7,7.9138]
[1744255928723,1.24673,1604.8,1604.7,3.2078]
[1744255929323,1.24673,1604.8,1604.7,4.98813042]
[1744255929533,1.24673,1604.8,1604.7,11.23494042]
[1744255929730,1.24673,1604.8,1604.7,9.56053042]
[1744255929935,5.75553,1604.8,1604.7,9.56053042]
[1744255930331,1.24681,1604.7,1604.6,6.6e-06]
[1744255930536,10.97861,1604.7,1604.6,6.6e-06]
[1744255931236,1.24735,1604.0,1603.9,9.0615]
[1744255931536,1.24735,1604.0,1603.9,13.6339]
[1744255931736,1.24735,1604.0,1603.9,20.41423042]
[1744255931932,1.24735,1604.0,1603.9,15.41423042]
[1744255932829,5.223,1604.3,1603.9,15.41423042]
[1744255933028,1.24731,1604.1,1604.0,3.02765042]
[1744255933229,1.24731,1604.1,1604.0,6.53833042]
[1744255934434,1.24731,1604.1,1604.0,1.78033042]
[1744255934633,1.24731,1604.1,1604.0,7.78568042]
[1744255934833,1.24731,1604.1,1604.0,6.53833042]
[1744255935736,10.0679,1604.3,1604.2,1.2472]
[1744255935737,6.47017,1604.3,1604.2,1.2472]
[1744255935936,6.47017,1604.3,1604.2,1.78033042]
[1744255936437,6.47017,1604.3,1604.2,6.67183042]
[1744255936734,6.47017,1604.3,1604.2,1.78033042]
[1744255937030,3.11803,1604.2,1603.9,4.4229]
[1744255937228,1.24727,1604.1,1604.0,1.78033042]
[1744255937637,5.92627,1604.1,1604.0,1.78033042]
[1744255937833,5.92627,1604.1,1603.6,7.744]
[1744255937834,1.24758,1603.7,1603.6,3.2078]
[1744255938230,1.24758,1603.7,1603.6,4.98813042]
[1744255938635,6.37889462,1603.8,1603.6,4.98813042]
[1744255938832,6.37889462,1603.8,1603.7,1.78033042]
[1744255939028,1.24758,1603.7,1603.6,6.34013042]
[1744255939322,1.24758,1603.7,1603.6,3.02793042]
[1744255939526,1.24758,1603.7,1603.6,1.78033042]
[1744255939726,1.24758,1603.7,1603.6,3.02799042]
[1744255939928,4.45538,1603.7,1603.6,1.78033042]
[1744255940128,1.2479,1603.3,1603.2,4.4872]
[1744255940536,1.2479,1603.3,1603.2,6.26753042]
[1744255940730,5.123,1603.4,1603.3,1.2479]
[1744255940936,6.37082,1603.4,1603.3,1.78033042]
[1744255941128,1.24782,1603.5,1603.4,1.2478]
[1744255941333,1.24774,1603.5,1603.4,1.78033042]
[1744255941530,1.2479,1603.3,1603.2,4.4872]
[1744255941732,1.2479,1603.3,1603.2,6.26753042]
[1744255942141,1.2479,1603.3,1603.2,1.78033042]
[1744255942436,3.11997,1603.2,1602.8,1.24826]
[1744255942642,8.24397,1603.2,1602.8,1.78033042]
[1744255942835,1.24813,1603.0,1602.9,1.78033042]
[1744255943034,1.248,1603.2,1603.1,1.24801]
[1744255943235,11.45117,1603.5,1603.1,3.2078]
[1744255943439,3.12019,1603.1,1602.8,3.2078]
[1744255943631,1.24844,1602.6,1602.5,3.2078]
[1744255943936,1.24852,1602.5,1602.4,15.70784174]
[1744255944142,1.24847,1602.6,1602.5,1.78033042]
[1744255944342,1.24846,1602.6,1602.5,1.78033042]
[1744255944641,1.24846,1602.6,1602.5,3.02885042]
[1744255944837,1.24846,1602.6,1602.5,1.78033042]
[1744255945337,1.24852,1602.5,1602.4,12.69575174]
[1744255945542,3.12144,1602.5,1602.1,3.2078]
[1744255945740,1.2487,1602.3,1602.2,1.78033042]
[1744255945939,1.2487,1602.3,1602.2,3.02908042]
[1744255946142,1.2487,1602.3,1602.2,1.78033042]
[1744255946341,1.2487,1602.3,1602.2,3.02908042]
[1744255946539,1.2487,1602.3,1602.2,1.78033042]
[1744255946936,3.12132,1602.5,1602.2,1.78033042]
[1744255946937,1.24857,1602.5,1602.2,6.78033042]
[1744255947131,6.24222,1602.6,1602.3,4.98813042]
[1744255947337,6.24222,1602.6,1601.9,4.4579]
[1744255947338,2.1127,1602.4,1602.1,1.24883]
[1744255947636,2.1127,1602.4,1602.2,4.45652]
[1744255947840,2.1127,1602.4,1602.3,1.24868]
[1744255948148,2.1127,1602.4,1602.3,1.73320042]
[1744255948338,2.1127,1602.4,1602.3,6.73320042]
[1744255949043,0.00934462,1602.7,1602.3,5.48452042]
[1744255949244,1.24852,1602.5,1602.4,3.69232042]
[1744255949444,1.24852,1602.5,1602.4,3.2078]
[1744255949646,1.24852,1602.5,1602.4,0.48452042]
[1744255950345,0.00934462,1602.7,1602.4,0.48452042]
[1744255950644,1.2485,1602.6,1602.5,0.48452042]
[1744255950849,1.25775462,1602.7,1602.5,1.73304042]
[1744255951046,1.25775462,1602.7,1602.6,0.48452042]
[1744255951637,6.20505462,1602.7,1602.6,0.48452042]
[1744255952037,1.25775462,1602.7,1602.6,0.48452042]
[1744255953746,4.46555462,1602.7,1602.6,0.48452042]
[1744255953946,1.2486,1602.4,1602.3,4.8175]
[1744255954445,1.2486,1602.4,1602.3,5.30202042]
[1744255954741,0.00934462,1602.7,1602.4,1.24856]
[1744255954934,1.24852,1602.5,1602.4,0.48452042]
[1744255955138,1.2486,1602.4,1602.3,8.0253]
[1744255955443,1.24849,1602.6,1602.4,1.73311042]
[1744255955745,0.00934462,1602.7,1602.4,1.73311042]
[1744255955947,1.24844,1602.6,1602.5,0.48452042]
[1744255956146,1.2486,1602.4,1602.3,8.0253]
[1744255956641,1.2486,1602.4,1602.3,0.48452042]
[1744255956847,1.24891,1602.0,1601.9,4.6649]
[1744255957650,1.24891,1602.0,1601.9,9.12169]
[1744255957946,1.24891,1602.0,1601.9,9.12166]
[1744255958144,1.24891,1602.0,1601.9,5.91389]
[1744255958446,3.12195,1602.2,1601.9,5.91389]
[1744255958447,1.24881,1602.2,1602.1,1.24883]
[1744255958645,1.24883,1602.1,1602.0,9.6168]
[1744255958851,1.24883,1602.1,1602.0,15.53056]
[1744255959040,16.03421,1602.4,1602.0,14.2817]
[1744255959247,1.24883,1602.1,1602.0,14.2817]
[1744255959446,3.12137,1602.5,1602.0,14.2817]
[1744255959646,1.2487,1602.3,1602.2,3.2078]
[1744255959850,1.2487,1602.3,1602.2,9.13385]
[1744255960047,1.2487,1602.3,1602.2,7.8851]
[1744255960354,1.24861,1602.4,1602.3,1.24862]
[1744255960652,3.12111,1602.6,1602.2,7.8851]
[1744255960837,1.24868,1602.3,1602.2,9.1338]
[1744255961040,1.24868,1602.3,1602.2,4.6773]
[1744255961251,1.24868,1602.3,1602.2,9.13385]
[1744255961448,1.24866,1602.4,1602.3,1.24867]
[1744255961649,0.00934462,1602.7,1602.2,11.00698]
[1744255961852,1.24852,1602.5,1602.4,4.45639]
[1744255962041,1.24863,1602.4,1602.2,7.8851]
[1744255962244,1.24868,1602.3,1602.2,7.8851]
[1744255962451,1.24868,1602.3,1602.2,4.6773]
[1744255962652,1.24868,1602.3,1602.2,5.92605]
[1744255962850,1.24868,1602.3,1602.2,4.6773]
[1744255963048,1.24868,1602.3,1602.2,9.13385]
[1744255963249,1.24866,1602.4,1602.3,1.24866]
[1744255963446,3.13026462,1602.7,1602.2,11.00692]
[1744255963648,1.24852,1602.5,1602.4,4.45639]
[1744255963847,0.00934462,1602.7,1602.4,3.2078]
[1744255964048,0.00934462,1602.7,1602.5,9.8874]
[1744255964248,1.24868,1602.3,1602.2,3.2078]
[1744255964449,1.24875,1602.2,1602.1,4.9334]
[1744255965043,3.12135,1602.5,1602.1,9.9334]
[1744255965261,1.24868,1602.3,1602.2,4.9334]
[1744255968163,1.24883,1602.1,1602.0,8.0756]
[1744255968353,1.24883,1602.1,1602.0,12.8967]
[1744255968861,1.24881,1602.2,1602.0,19.14558]
[1744255969056,1.24883,1602.1,1602.0,12.8967]
[1744255969249,3.1217,1602.3,1602.0,18.1837]
[1744255969455,1.24872,1602.3,1602.1,1.24883]
[1744255969761,1.24872,1602.3,1602.2,4.9739]
[1744255970257,1.24857,1602.5,1602.4,1.24858]
[1744255970563,1.24852,1602.5,1602.4,3.2078]
[1744255970760,1.24852,1602.5,1602.4,8.2078]
[1744255970961,0.00934462,1602.7,1602.4,18.114]
[1744255971162,1.24844,1602.6,1602.5,4.7436]
[1744255971465,1.24844,1602.6,1602.5,9.7175]
[1744255971963,3.2078,1603.1,1602.8,3.12067]
[1744255972150,1.24809,1603.1,1602.9,18.98857]
[1744255972354,1.2481,1603.1,1602.9,22.7404]
[1744255972558,4.8578,1603.3,1603.0,40.8]
[1744255972866,1.24793,1603.3,1603.1,9.21181]
[1744255973066,4.8578,1603.7,1603.3,1.24789]
[1744255973364,3.11859,1603.9,1603.4,6.00378]
[1744255973665,1.24774,1603.5,1603.4,4.756]
[1744255974165,1.24772,1603.6,1603.4,11.0038]
[1744255974352,0.00934462,1603.7,1603.5,3.2078]
[1744255974553,4.69371993,1604.1,1604.0,1.24735]
[1744255974757,4.69371993,1604.1,1604.0,6.53335]
[1744255974963,4.69371993,1604.1,1604.0,46.086]
[1744255975160,4.69371993,1604.1,1604.0,45.516]
[1744255975455,5.94098993,1604.1,1604.0,45.516]
[1744255975656,5.94098993,1604.1,1604.0,50.801]
[1744255975862,10.46978993,1604.1,1604.0,45.516]
[1744255976556,5.94098993,1604.1,1604.0,45.516]
[1744255977863,0.00934462,1604.2,1604.0,46.76335]
[1744255978465,0.00934462,1604.2,1604.0,45.516]
[1744255978864,1.25656462,1604.2,1604.0,46.76333]
[1744255979063,1.25656462,1604.2,1604.0,45.516]
[1744255979361,1.24727,1604.1,1604.0,45.516]
[1744255979766,1.25659462,1604.2,1604.0,46.76335]
[1744255980062,1.24727,1604.1,1604.0,40.8]
[1744255980269,0.00934462,1604.2,1604.0,40.8]
[1744255980568,1.25656462,1604.2,1604.0,42.04731]
[1744255980868,0.00934462,1604.2,1604.1,1.24727]
[1744255981069,0.00934462,1604.2,1604.1,9.73807]
[1744255981264,1.24695,1604.6,1604.1,26.6128]
[1744255981460,1.24683,1604.7,1604.5,1.24689]
[1744255981666,1.24672,1604.9,1604.7,1.24674]
[1744255981866,1.24672,1604.9,1604.8,4.5427]
[1744255982056,1.24675,1604.8,1604.6,45.6372]
[1744255982367,1.24673,1604.8,1604.7,4.5427]
[1744255982870,1.25605462,1604.9,1604.7,5.78951]
[1744255983073,0.00934462,1604.9,1604.8,1.24673]
[1744255983264,0.00934462,1604.9,1604.8,4.45453]
[1744255983461,0.00934462,1604.9,1604.8,8.4908]
[1744255983680,1.25599462,1604.9,1604.8,5.283]
[1744255984265,0.00934462,1604.9,1604.8,5.283]
[1744255984467,0.00934462,1604.9,1604.8,6.52973]
[1744255984662,0.00934462,1604.9,1604.8,9.73753]
[1744255984869,0.00934462,1604.9,1604.8,6.52973]
[1744255985070,1.25599462,1604.9,1604.8,5.283]
[1744255985262,1.25605462,1604.9,1604.7,9.8237]
[1744255985473,0.00934462,1604.9,1604.8,4.45453]
[1744255986063,0.00934462,1604.9,1604.8,9.45453]
[1744255986266,0.00934462,1604.9,1604.8,13.5883098]
[1744255987072,1.24634,1605.3,1605.2,1.24642]
[1744255987260,4.69371993,1605.4,1605.1,9.4137798]
[1744255987460,1.24642,1605.2,1605.1,13.9908798]
[1744255987660,4.69371993,1605.4,1605.1,8.7108798]
[1744255987869,4.69371993,1605.4,1605.3,3.2078]
[1744255988076,4.70306455,1605.4,1605.3,4.45414]
[1744255988367,4.70306455,1605.4,1605.3,9.73414]
[1744255988966,1.25560462,1605.4,1605.3,3.2078]
[1744255989170,1.25560462,1605.4,1605.3,1.24634]
[1744255989171,0.00934462,1605.4,1605.3,1.24634]
[1744255989775,0.00934462,1605.4,1605.3,13.5879198]
[1744255990266,0.00934462,1605.4,1605.3,5.3801198]
[1744255990472,0.00934462,1605.4,1605.3,8.5879198]
[1744255992272,0.00934462,1605.4,1605.2,4.5771]
[1744255992466,6.20035462,1605.4,1605.2,4.5771]
[1744255992662,1.24642,1605.2,1605.1,3.21714462]
[1744255992971,1.24634,1605.3,1605.1,1.25582462]
[1744255993176,1.24634,1605.3,1605.1,9.20362462]
[1744255993380,4.95404462,1605.4,1605.2,1.24639]
[1744255993675,4.95404462,1605.4,1605.1,4.46362462]
[1744255993878,4.95404462,1605.4,1605.1,9.20357462]
[1744255994079,1.24638,1605.3,1605.1,9.20357462]
[1744255994279,1.24642,1605.2,1605.1,4.46357462]
[1744255994576,4.95404462,1605.4,1605.1,4.46357462]
[1744255994977,6.20038462,1605.4,1605.1,3.21714462]
[1744255995173,4.95404462,1605.4,1605.1,4.46357462]
[1744255995380,8.06973462,1605.4,1605.1,4.46357462]
[1744255995576,1.24642,1605.2,1605.1,4.46357462]
[1744255995778,1.24642,1605.2,1605.1,3.21714462]
[1744255996280,6.24642,1605.2,1605.1,0.00934462]
[1744255996780,11.06002,1605.2,1605.1,0.00934462]
[1744255996971,6.06002,1605.2,1605.1,0.00934462]
[1744255997474,3.2078,1605.3,1605.1,1.25578462]
[1744255997674,1.24642,1605.2,1605.1,1.25578462]
[1744255998687,1.24642,1605.2,1605.1,1.25583462]
[1744255998980,1.24642,1605.2,1605.1,0.00934462]
[1744256000279,6.13352,1605.2,1605.1,0.00934462]
[1744256003980,11.13352,1605.2,1605.1,0.00934462]
[1744256005485,6.13352,1605.2,1605.1,0.00934462]
[1744256007487,11.13352,1605.2,1605.1,0.00934462]
[1744256008780,1.24642,1605.2,1605.1,1.25584462]
[1744256009178,1.24642,1605.2,1605.1,0.00934462]
[1744256009486,6.21552,1605.2,1605.1,1.25584462]
[1744256009687,1.24642,1605.2,1605.1,1.25584462]
[1744256009983,6.2155,1605.3,1605.2,1.24642]
[1744256010188,1.24642,1605.2,1605.1,1.25578462]
[1744256010989,1.24642,1605.2,1605.1,0.00934462]
[1744256011188,6.21242,1605.2,1605.1,0.00934462]
[1744256011488,14.42022,1605.2,1605.1,0.00934462]
[1744256011678,9.42022,1605.2,1605.1,0.00934462]
[1744256011882,6.21242,1605.2,1605.1,0.00934462]
[1744256012890,6.21242,1605.2,1605.1,1.25584462]
[1744256013190,6.21242,1605.2,1605.1,0.00934462]
[1744256014188,11.21242,1605.2,1605.1,4.62e-06]
[1744256014388,19.61832,1605.2,1605.1,4.62e-06]
[1744256016093,25.45232,1605.2,1605.1,4.62e-06]
[1744256016592,20.45232,1605.2,1605.1,4.62e-06]
[1744256018184,12.04642,1605.2,1605.1,4.62e-06]
[1744256018793,6.21242,1605.2,1605.1,4.62e-06]
[1744256019296,14.42022,1605.2,1605.1,4.62e-06]
[1744256019990,20.25422,1605.2,1605.1,4.62e-06]
[1744256021202,1.24696,1604.5,1604.4,4.1337798]
[1744256021393,1.2472,1604.2,1604.1,9.4424]
[1744256021894,1.2472,1604.2,1604.1,14.4424]
[1744256022595,1.2472,1604.2,1604.1,9.4424]
[1744256022796,1.24727,1604.1,1604.0,0.00934462]
[1744256023193,6.27917,1604.1,1604.0,0.00934462]
[1744256023899,6.27917,1604.1,1604.0,4.62e-06]
[1744256027896,11.27917,1604.1,1604.0,4.62e-06]
[1744256028200,17.11317,1604.1,1604.0,4.62e-06]
[1744256028399,12.11317,1604.1,1604.0,4.62e-06]
[1744256029190,7.08127,1604.1,1604.0,4.62e-06]
[1744256030503,1.24727,1604.1,1604.0,5.00000462]
[1744256032395,3.12718462,1604.3,1604.0,6.24733462]
[1744256032698,0.00934462,1604.3,1604.1,15.67363]
[1744256032899,1.2472,1604.2,1604.1,10.94913]
[1744256033097,1.2472,1604.2,1604.1,14.7019]
[1744256033403,1.2472,1604.2,1604.1,9.7019]
[1744256038801,1.2472,1604.2,1604.1,8.23007]
[1744256039099,1.24727,1604.1,1604.0,4.62e-06]
[1744256041297,4.45507,1604.1,1604.0,4.62e-06]
[1744256041503,1.24727,1604.1,1604.0,4.62e-06]
[1744256041898,4.45507,1604.1,1604.0,4.62e-06]
[1744256042102,1.24727,1604.1,1604.0,4.62e-06]
[1744256044211,0.00934462,1604.3,1604.0,10.07800462]
[1744256044407,1.2472,1604.2,1604.1,3.2078]
[1744256044612,1.24727,1604.1,1604.0,6.32532462]
[1744256044814,3.12733462,1604.3,1604.1,1.24724]
[1744256045113,1.24727,1604.1,1604.0,6.32530462]
[1744256045516,1.24725,1604.2,1604.1,1.24724]
[1744256045717,1.25652462,1604.3,1604.2,1.2472]
[1744256045907,1.2472,1604.2,1604.1,4.45501]
[1744256046707,1.2472,1604.2,1604.1,9.44061]
[1744256047409,1.25653462,1604.3,1604.2,1.2472]
[1744256047612,3.11708,1604.7,1604.3,3.1178]
[1744256047914,1.24696,1604.5,1604.4,9.8652]
[1744256048111,1.24696,1604.5,1604.4,14.6567]
[1744256049914,1.25623462,1604.6,1604.5,1.24696]
[1744256050112,3.1164,1605.1,1604.7,1.24681]
[1744256050317,1.24665,1604.9,1604.8,45.8052]
[1744256051330,1.24665,1604.9,1604.8,47.05193]
[1744256051623,0.00934462,1605.0,1604.8,47.05193]
[1744256051927,0.00934462,1605.0,1604.9,4.9067]
[1744256052129,0.00934462,1605.0,1604.9,14.22015]
[1744256052331,1.25591462,1605.0,1604.9,12.9735]
[1744256052726,0.00934462,1605.0,1604.9,14.22015]
[1744256053334,0.00934462,1605.0,1604.9,18.83725]
[1744256053527,0.00934462,1605.0,1604.9,22.9710298]
[1744256053828,0.00934462,1605.0,1604.9,27.9710298]
[1744256054325,1.24624,1605.5,1605.3,1.24631]
[1744256054524,12.65691993,1605.8,1605.5,1.24619]
[1744256054827,1.24609,1605.7,1605.6,4.5903]
[1744256056032,1.24611,1605.6,1605.5,40.80934462]
[1744256056227,6.00151,1605.6,1605.5,0.00934462]
[1744256057123,6.00151,1605.6,1605.5,4.63114462]
[1744256057727,1.24611,1605.6,1605.5,4.63114462]
[1744256058127,4.6191,1605.7,1605.5,7.83894462]
[1744256058527,5.8652,1605.7,1605.5,9.08507462]
[1744256058724,4.6191,1605.7,1605.5,9.08506462]
[1744256059135,5.8652,1605.7,1605.5,7.83894462]
[1744256059334,5.8652,1605.7,1605.5,9.08507462]
[1744256059636,1.24611,1605.6,1605.5,4.63114462]
[1744256061829,3.12424462,1605.8,1605.5,5.87733462]
[1744256062235,1.24611,1605.6,1605.5,5.87733462]
[1744256062736,6.20841462,1605.8,1605.5,4.63114462]
[1744256062934,0.00934462,1605.8,1605.7,1.24603]
[1744256063133,0.00934462,1605.8,1605.7,4.45383]
[1744256063337,0.00934462,1605.8,1605.7,9.45383]
[1744256063635,0.00934462,1605.8,1605.7,23.1725098]
[1744256065833,0.00934462,1605.8,1605.7,18.1725098]
[1744256066836,4.62e-06,1605.8,1605.7,18.1725098]
[1744256067044,4.62e-06,1605.8,1605.7,23.1725098]
[1744256067339,5.0518,1606.4,1606.3,1.24557]
[1744256067736,10.0518,1606.4,1606.3,1.24557]
[1744256067939,5.93906993,1606.6,1606.5,1.24541]
[1744256068242,5.93904993,1606.6,1606.5,1.24541]
[1744256068430,4.69371993,1606.6,1606.5,1.24541]
[1744256068630,4.69371993,1606.6,1606.5,4.45321]
[1744256068836,4.69371993,1606.6,1606.5,9.42721]
[1744256069140,0.0062252,1606.7,1606.6,1.24533]
[1744256069339,0.0062252,1606.7,1606.6,5.97853]
[1744256071041,5.93854993,1607.3,1607.1,1.24488]
[1744256071248,4.5478,1607.1,1607.0,4.45282]
[1744256071438,4.5478,1607.1,1607.0,49.98602]
[1744256071634,4.69371993,1607.3,1607.2,1.24487]
[1744256071837,9.23301993,1607.3,1607.2,1.24487]
[1744256072031,4.69371993,1607.3,1607.2,1.24487]
[1744256072235,4.69371993,1607.3,1607.2,4.45267]
[1744256072435,4.69371993,1607.3,1607.2,9.42567]
[1744256072841,4.69371993,1607.3,1607.2,6.21787]
[1744256073040,9.23301993,1607.3,1607.2,9.42567]
[1744256073242,4.69371993,1607.3,1607.2,9.42567]
[1744256073942,4.69371993,1607.3,1607.2,10.04807]
[1744256074335,4.69371993,1607.3,1607.2,50.84807]
[1744256075640,4.69371993,1607.3,1607.2,55.84807]
[1744256075841,4.69371993,1607.3,1607.2,54.9818498]
[1744256076448,4.4973,1607.7,1607.6,1.24456]
[1744256076836,3.2078,1608.2,1608.0,1.24422]
[1744256077041,4.4973,1608.1,1608.0,1.24422]
[1744256077241,5.74147,1608.1,1607.9,4.971]
[1744256077551,5.7415,1608.1,1607.9,4.971]
[1744256077742,5.7415,1608.1,1608.0,1.24425]
[1744256077943,1.24425,1608.0,1607.9,4.971]
[1744256078143,1.24425,1608.0,1607.9,6.21533]
[1744256078144,4.993,1608.0,1607.9,6.21533]
[1744256078645,3.2078,1608.8,1607.9,120.79804841]
[1744256078844,3.2078,1608.8,1608.7,1.24371]
[1744256079046,6.23657,1608.9,1608.7,42.04371]
[1744256079344,4.993,1608.9,1608.7,40.8]
[1744256079543,4.993,1608.9,1608.7,44.0078]
[1744256079748,4.45143,1608.8,1608.7,40.8]
[1744256079946,3.10956,1608.6,1608.0,6.21322]
[1744256080149,3.2078,1608.6,1608.0,9.6967]
[1744256080451,1.24396,1608.4,1608.2,1.24406]
[1744256080642,4.45171,1608.5,1608.3,1.244]
[1744256080844,1.24402,1608.3,1608.2,4.7277]
[1744256081047,4.755,1608.4,1608.2,4.7277]
[1744256081357,6.00828462,1608.4,1608.2,5.97175]
[1744256081542,6.00828462,1608.4,1608.2,10.94075]
[1744256081746,4.76434462,1608.4,1608.2,12.9045]
[1744256081946,4.76434462,1608.4,1608.3,1.24402]
[1744256082450,4.76434462,1608.4,1608.3,4.45182]
[1744256082754,0.00934462,1608.4,1608.3,1.24402]
[1744256083052,0.00934462,1608.4,1608.3,4.45182]
[1744256083454,0.00934462,1608.4,1608.3,9.45182]
[1744256083658,0.00934462,1608.4,1608.3,13.5855998]
[1744256083963,1.24358,1608.9,1608.5,3.1096]
[1744256084158,4.5133,1609.0,1608.7,3.2078]
[1744256084457,4.5133,1608.8,1608.7,9.07135]
[1744256084849,12.7211,1608.8,1608.3,4.1337798]
[1744256085056,7.7211,1608.8,1608.5,1.24385]
[1744256085351,1.24371,1608.7,1608.3,15.0713598]
[1744256085556,5.75708,1608.6,1608.4,4.6199]
[1744256085760,5.75708,1608.6,1608.3,3.2078]
[1744256085761,4.5133,1608.6,1608.3,3.2078]
[1744256086055,1.24402,1608.3,1608.2,4.968]
[1744256086252,3.2078,1608.4,1608.2,4.968]
[1744256086459,3.2078,1608.4,1608.3,1.24402]
[1744256087052,5.75715,1608.6,1608.4,1.24391]
[1744256087254,1.24386,1608.5,1608.4,1.24391]
[1744256087554,6.23346,1608.5,1608.4,1.24391]
[1744256088051,4.9896,1608.5,1608.4,4.45171]
[1744256088258,4.9896,1608.5,1608.4,1.24391]
[1744256088759,1.2438,1608.6,1608.5,1.24386]
[1744256088954,6.2334,1608.6,1608.5,4.45166]
[1744256089250,4.9896,1608.6,1608.4,4.879]
[1744256089450,4.9896,1608.6,1608.5,1.24386]